bitfinex/quotes_BTCUSD_20240811
["timestamp","ask_amount","ask_price","bid_price","bid_amount"]
[1723337013823,0.000832,61200.0,61199.0,1.25613812]
[1723337014249,0.000832,61200.0,61199.0,1.27788206]
[1723337014477,0.000832,61200.0,61199.0,1.50664295]
[1723337015292,0.000832,61200.0,61199.0,1.57448126]
[1723337015496,0.000832,61200.0,61199.0,1.56648126]
[1723337015899,0.001832,61200.0,61199.0,1.58248126]
[1723337016169,0.001832,61200.0,61199.0,1.50264295]
[1723337016366,0.001832,61200.0,61199.0,1.25988195]
[1723337016569,0.001832,61200.0,61199.0,1.27388195]
[1723337017127,0.000832,61200.0,61199.0,1.27188195]
[1723337017338,0.001832,61200.0,61199.0,1.1568406]
[1723337017538,0.001832,61200.0,61199.0,1.27384461]
[1723337019067,0.001832,61200.0,61199.0,1.28384461]
[1723337019223,0.001832,61200.0,61199.0,1.50260561]
[1723337020455,0.001832,61200.0,61199.0,1.51460561]
[1723337020764,0.001832,61200.0,61199.0,1.3976016]
[1723337020981,0.001832,61200.0,61199.0,1.50252709]
[1723337021423,0.001832,61200.0,61199.0,1.51252709]
[1723337021808,0.000832,61200.0,61199.0,1.49652709]
[1723337022010,0.001832,61200.0,61199.0,1.54906566]
[1723337022228,0.001832,61200.0,61199.0,1.56306566]
[1723337022481,0.001832,61200.0,61199.0,1.54906566]
[1723337022666,0.000832,61200.0,61199.0,1.54706566]
[1723337022877,0.000832,61200.0,61199.0,1.56106566]
[1723337023444,0.000832,61200.0,61199.0,1.57506566]
[1723337023647,0.000832,61200.0,61199.0,1.40214564]
[1723337024175,0.001832,61200.0,61199.0,1.58823321]
[1723337024524,0.001832,61200.0,61199.0,1.76412477]
[1723337024525,0.000832,61200.0,61199.0,1.76412477]
[1723337024702,0.000832,61200.0,61199.0,1.68033644]
[1723337024933,0.001832,61200.0,61199.0,1.65233644]
[1723337025104,0.001832,61200.0,61199.0,1.65311377]
[1723337025328,0.000832,61200.0,61199.0,1.51346824]
[1723337025443,0.000832,61200.0,61199.0,1.57227609]
[1723337025647,0.000832,61200.0,61199.0,1.65411403]
[1723337025911,0.000832,61200.0,61199.0,1.66811403]
[1723337026236,0.000832,61200.0,61199.0,1.83770824]
[1723337026596,0.000832,61200.0,61199.0,1.82370824]
[1723337027011,0.000832,61200.0,61199.0,1.80970824]
[1723337027180,0.001832,61200.0,61199.0,1.82070824]
[1723337027384,0.001832,61200.0,61199.0,1.82074142]
[1723337027605,0.000832,61200.0,61199.0,1.82374142]
[1723337028014,0.001832,61200.0,61199.0,1.4086016]
[1723337028221,0.001832,61200.0,61199.0,1.7640119]
[1723337028415,0.000832,61200.0,61199.0,1.82385282]
[1723337028620,0.000832,61200.0,61199.0,1.7510119]
[1723337028850,0.001832,61200.0,61199.0,1.7500119]
[1723337029049,0.001832,61200.0,61199.0,1.7640119]
[1723337029266,0.001832,61200.0,61199.0,1.7520119]
[1723337029489,0.001832,61200.0,61199.0,1.7480119]
[1723337029684,0.001832,61200.0,61199.0,1.7640119]
[1723337029886,0.001832,61200.0,61199.0,1.82287374]
[1723337030110,0.001832,61200.0,61199.0,1.58211274]
[1723337030258,0.001832,61200.0,61199.0,1.20995737]
[1723337030461,0.001832,61200.0,61199.0,1.14211996]
[1723337030702,0.000832,61200.0,61199.0,1.11511996]
[1723337030865,0.001832,61200.0,61199.0,1.12811996]
[1723337031469,0.078332,61200.0,61199.0,0.69951296]
[1723337031744,0.145932,61200.0,61199.0,0.47408928]
[1723337031938,0.145932,61200.0,61199.0,0.356141]
[1723337032094,0.145932,61200.0,61199.0,0.12738]
[1723337032501,0.145932,61200.0,61199.0,0.370141]
[1723337032930,0.145932,61200.0,61199.0,0.027]
[1723337033141,0.145932,61200.0,61199.0,0.013]
[1723337033341,0.147532,61200.0,61199.0,0.11438]
[1723337033548,0.148532,61200.0,61199.0,0.13438]
[1723337034232,0.148532,61200.0,61199.0,0.12238]
[1723337034233,0.147532,61200.0,61199.0,0.12238]
[1723337034400,0.147532,61200.0,61199.0,0.12538]
[1723337034828,0.147532,61200.0,61199.0,0.011]
[1723337034966,0.261911,61200.0,61199.0,0.011]
[1723337035233,0.65448392,61200.0,61199.0,0.011]
[1723337035667,0.42572592,61200.0,61199.0,0.011]
[1723337037012,0.65448392,61200.0,61199.0,0.011]
[1723337037852,0.42572592,61200.0,61199.0,0.011]
[1723337040586,0.31134692,61200.0,61199.0,0.011]
[1723337040794,0.147532,61200.0,61199.0,0.011]
[1723337041413,0.261911,61200.0,61199.0,0.011]
[1723337042316,0.147532,61200.0,61199.0,0.011]
[1723337042473,0.54010492,61200.0,61199.0,0.011]
[1723337042696,0.65448392,61200.0,61199.0,0.011]
[1723337044662,0.88324192,61200.0,61199.0,0.011]
[1723337045075,0.65448392,61200.0,61199.0,0.011]
[1723337045265,0.88324192,61200.0,61199.0,0.011]
[1723337045505,0.93928579,61200.0,61199.0,0.011]
[1723337045718,0.89324192,61200.0,61199.0,0.011]
[1723337045918,1.68324192,61200.0,61199.0,0.011]
[1723337046070,1.91199992,61200.0,61199.0,0.011]
[1723337047057,1.68324192,61200.0,61199.0,0.011]
[1723337048445,1.67324192,61200.0,61199.0,0.011]
[1723337048587,1.68324192,61200.0,61199.0,0.011]
[1723337048802,1.67324192,61200.0,61199.0,0.011]
[1723337049413,1.68324192,61200.0,61199.0,0.011]
[1723337049993,1.91199992,61200.0,61199.0,0.011]
[1723337050219,1.68324192,61200.0,61199.0,0.011]
[1723337054097,1.91199992,61200.0,61199.0,0.011]
[1723337054317,1.81927961,61200.0,61199.0,0.011]
[1723337054517,2.16803761,61200.0,61199.0,0.011]
[1723337054878,2.25563622,61200.0,61199.0,0.011]
[1723337055104,2.23563622,61200.0,61199.0,0.011]
[1723337055307,2.25563622,61200.0,61199.0,0.003]
[1723337055508,0.81073,61194.0,61193.0,0.0009152]
[1723337055814,1.97774492,61194.0,61193.0,0.0009152]
[1723337057051,1.98174492,61194.0,61193.0,0.0019152]
[1723337058561,2.03671764,61194.0,61193.0,0.0029152]
[1723337059104,2.12405814,61194.0,61193.0,0.0029152]
[1723337059554,2.12406015,61194.0,61193.0,0.0029152]
[1723337060376,2.13397381,61194.0,61193.0,0.0029152]
[1723337061256,2.08100109,61194.0,61193.0,0.0029152]
[1723337061456,1.23165858,61194.0,61193.0,0.0029152]
[1723337063292,0.86167858,61194.0,61193.0,0.0029152]
[1723337063513,0.13039,61194.0,61193.0,0.0029152]
[1723337064703,0.12839,61194.0,61193.0,0.0019152]
[1723337065146,0.13039,61194.0,61193.0,0.0019152]
[1723337065342,0.014,61194.0,61193.0,0.0019152]
[1723337065544,0.014,61194.0,61193.0,0.1957072]
[1723337065751,0.016,61194.0,61193.0,0.1957072]
[1723337065958,0.002,61194.0,61193.0,0.1947072]
[1723337066173,0.002,61194.0,61193.0,0.4234912]
[1723337066372,0.014,61194.0,61193.0,0.1957072]
[1723337066781,0.012,61194.0,61193.0,0.4244912]
[1723337067136,0.114382,61198.0,61194.0,0.114389]
[1723337069496,0.114382,61198.0,61194.0,0.115389]
[1723337069862,0.117382,61198.0,61194.0,0.115389]
[1723337071181,0.003,61198.0,61194.0,0.001]
[1723337071380,0.114388,61195.0,61194.0,0.001]
[1723337072120,0.114388,61195.0,61193.0,0.0009152]
[1723337072244,0.11439,61194.0,61193.0,0.0009152]
[1723337072441,0.228773,61196.0,61194.0,0.004]
[1723337073323,0.114389,61195.0,61193.0,0.0009152]
[1723337073700,0.114389,61195.0,61194.0,0.003]
[1723337074502,0.81615592,61195.0,61194.0,0.003]
[1723337075924,0.82315592,61195.0,61194.0,0.004]
[1723337076170,1.11303192,61195.0,61194.0,0.001]
[1723337076369,0.57195,61194.0,61193.0,0.0009152]
[1723337076540,1.06533903,61194.0,61193.0,0.0009152]
[1723337076744,1.29411903,61194.0,61193.0,0.0049152]
[1723337076944,1.29411903,61194.0,61193.0,0.0009152]
[1723337077476,1.29411903,61194.0,61193.0,0.0019152]
[1723337077477,1.29911903,61194.0,61193.0,0.0019152]
[1723337077952,1.3000099,61194.0,61193.0,0.0019152]
[1723337078145,2.08958809,61194.0,61193.0,0.0019152]
[1723337078421,1.91204492,61194.0,61193.0,0.0019152]
[1723337078621,2.04892794,61194.0,61193.0,0.0019152]
[1723337078924,2.0000137,61194.0,61193.0,0.0019152]
[1723337079525,2.07338506,61194.0,61193.0,0.0019152]
[1723337080724,2.0000137,61194.0,61193.0,0.0019152]
[1723337081541,2.07340695,61194.0,61193.0,0.0019152]
[1723337081963,2.23755665,61194.0,61193.0,0.0019152]
[1723337082482,2.0000137,61194.0,61193.0,0.0019152]
[1723337082684,2.07340566,61194.0,61193.0,0.0019152]
[1723337082862,2.0000137,61194.0,61193.0,0.0019152]
[1723337083546,2.0734049,61194.0,61193.0,0.0019152]
[1723337083743,2.07340522,61194.0,61193.0,0.0019152]
[1723337083923,2.0000137,61194.0,61193.0,0.0019152]
[1723337085131,2.0200137,61194.0,61193.0,0.0019152]
[1723337085348,2.1641634,61194.0,61193.0,0.0019152]
[1723337085573,2.1841634,61194.0,61193.0,0.0019152]
[1723337085775,2.1641634,61194.0,61193.0,0.0019152]
[1723337086019,2.1591634,61194.0,61193.0,0.0009152]
[1723337086222,2.1581634,61194.0,61193.0,0.0009152]
[1723337086417,2.1721634,61194.0,61193.0,0.0029152]
[1723337086622,2.1741634,61194.0,61193.0,0.0029152]
[1723337086794,2.0100137,61194.0,61193.0,0.0029152]
[1723337086995,2.07340968,61194.0,61193.0,0.0029152]
[1723337087201,1.3100137,61194.0,61193.0,0.0029152]
[1723337087400,1.22204492,61194.0,61193.0,0.0029152]
[1723337087638,1.31015896,61194.0,61193.0,0.0029152]
[1723337088462,1.29615896,61194.0,61193.0,0.0019152]
[1723337088968,1.30815896,61194.0,61193.0,0.0009152]
[1723337089179,1.30815896,61194.0,61193.0,0.0019152]
[1723337089180,1.31215896,61194.0,61193.0,0.0019152]
[1723337089590,1.31198324,61194.0,61193.0,0.0019152]
[1723337089809,1.25088324,61194.0,61193.0,0.0019152]
[1723337089974,1.17048324,61194.0,61193.0,0.0019152]
[1723337092279,1.15648324,61194.0,61193.0,0.0019152]
[1723337092478,1.16648324,61194.0,61193.0,0.0019152]
[1723337093091,1.16948324,61194.0,61193.0,0.0029152]
[1723337096337,1.16950396,61194.0,61193.0,0.0029152]
[1723337096509,1.75950396,61194.0,61193.0,0.0029152]
[1723337096714,1.80846484,61194.0,61193.0,0.0029152]
[1723337097240,1.80929684,61194.0,61193.0,0.0029152]
[1723337097421,1.76033596,61194.0,61193.0,0.0029152]
[1723337099191,1.84583596,61194.0,61193.0,0.0029152]
[1723337099783,1.90463596,61194.0,61193.0,0.0029152]
[1723337099965,1.91463596,61194.0,61193.0,0.0029152]
[1723337100520,1.91466101,61194.0,61193.0,0.0029152]
[1723337100926,1.98810234,61194.0,61193.0,0.0029152]
[1723337101342,1.93466101,61194.0,61193.0,0.0029152]
[1723337101544,2.00046101,61194.0,61193.0,0.0029152]
[1723337101729,2.07849725,61194.0,61193.0,0.0029152]
[1723337102034,2.26264695,61194.0,61193.0,0.0029152]
[1723337102206,2.35178675,61194.0,61193.0,0.0029152]
[1723337102410,2.2636832,61194.0,61193.0,0.0029152]
[1723337102613,2.20958118,61194.0,61193.0,0.0029152]
[1723337102796,2.33200682,61194.0,61193.0,0.0029152]
[1723337103563,1.99041193,61194.0,61193.0,0.0029152]
[1723337103756,2.07880558,61194.0,61193.0,0.0029152]
[1723337104083,2.0543201,61194.0,61193.0,0.0029152]
[1723337104318,2.05431922,61194.0,61193.0,0.0029152]
[1723337104937,2.0788021,61194.0,61193.0,0.0029152]
[1723337105344,2.05431993,61194.0,61193.0,0.0029152]
[1723337105934,1.89247692,61194.0,61193.0,0.0029152]
[1723337106182,1.98089093,61194.0,61193.0,0.0029152]
[1723337106991,2.01302246,61194.0,61193.0,0.0029152]
[1723337107214,1.97854492,61194.0,61193.0,0.0029152]
[1723337107414,1.87856033,61194.0,61193.0,0.0029152]
[1723337107613,1.88856033,61194.0,61193.0,0.0029152]
[1723337107819,2.02716033,61194.0,61193.0,0.0029152]
[1723337108091,2.07612246,61194.0,61193.0,0.0029152]
[1723337108303,2.06213446,61194.0,61193.0,0.0019152]
[1723337108471,2.06213446,61194.0,61193.0,0.0029152]
[1723337108632,2.07613446,61194.0,61193.0,0.0029152]
[1723337109031,2.05913446,61194.0,61193.0,0.0009152]
[1723337109413,2.07573017,61194.0,61193.0,0.0029152]
[1723337109750,2.07273017,61194.0,61193.0,0.0019152]
[1723337109929,2.07289805,61194.0,61193.0,0.0019152]
[1723337110708,2.07589805,61194.0,61193.0,0.0029152]
[1723337111101,1.97372045,61194.0,61193.0,0.0019152]
[1723337111353,2.06180102,61194.0,61193.0,0.0019152]
[1723337111554,1.91321419,61194.0,61193.0,0.0019152]
[1723337111731,1.91321419,61194.0,61193.0,0.0029152]
[1723337111732,1.82825749,61194.0,61193.0,0.0029152]
[1723337112317,1.28723222,61194.0,61193.0,0.0029152]
[1723337112519,1.05845222,61194.0,61193.0,0.0019152]
[1723337112725,1.05845222,61194.0,61193.0,0.0775152]
[1723337112726,0.99347749,61194.0,61193.0,0.0775152]
[1723337112931,0.99305902,61194.0,61193.0,0.0775152]
[1723337113133,0.99305902,61194.0,61193.0,0.0785152]
[1723337113308,1.00905902,61194.0,61193.0,0.0795152]
[1723337113761,1.00605902,61194.0,61193.0,0.0785152]
[1723337113967,1.00905902,61194.0,61193.0,0.0795152]
[1723337114167,0.99605902,61194.0,61193.0,0.0785152]
[1723337114381,0.99605902,61194.0,61193.0,0.0795152]
[1723337114556,1.05503375,61194.0,61193.0,0.0795152]
[1723337115371,1.07952501,61194.0,61193.0,0.0795152]
[1723337116248,0.1014941,61194.0,61193.0,0.0795152]
[1723337116449,0.10157495,61194.0,61193.0,0.1396152]
[1723337116906,0.21596495,61194.0,61193.0,0.1396152]
[1723337117285,0.82209109,61194.0,61193.0,0.0029152]
[1723337117615,2.0043561,61194.0,61193.0,0.0029152]
[1723337117790,2.60007802,61194.0,61193.0,0.0019152]
[1723337117994,2.60007802,61194.0,61191.0,0.0009152]
[1723337117995,0.975658,61192.0,61191.0,0.0009152]
[1723337118345,2.28887971,61192.0,61191.0,0.0009152]
[1723337118564,2.28887971,61192.0,61185.0,0.0009152]
[1723337118565,1.042735,61186.0,61185.0,0.0009152]
[1723337118767,0.680762,61182.0,61171.0,0.0001]
[1723337118970,2.18860109,61182.0,61171.0,0.0001]
[1723337119575,2.16860109,61182.0,61171.0,0.0001]
[1723337119750,2.08102692,61182.0,61171.0,0.0001]
[1723337119964,2.1723111,61182.0,61181.0,0.0019141]
[1723337120165,2.1693111,61182.0,61181.0,0.0009141]
[1723337120367,2.18919239,61182.0,61181.0,0.0009141]
[1723337120572,2.16919239,61182.0,61181.0,0.0019141]
[1723337120803,2.17219239,61182.0,61181.0,0.0019141]
[1723337121524,2.18519239,61182.0,61181.0,0.0019141]
[1723337121694,2.17219239,61182.0,61181.0,0.0019141]
[1723337121900,2.27549239,61182.0,61181.0,0.0019141]
[1723337122260,2.28649239,61182.0,61181.0,0.0009141]
[1723337122657,2.28149239,61182.0,61181.0,0.0019141]
[1723337122866,2.28649239,61182.0,61181.0,0.0009141]
[1723337123298,2.32512575,61182.0,61181.0,0.0019141]
[1723337123653,2.57434133,61182.0,61181.0,0.0009141]
[1723337123854,2.54434133,61182.0,61181.0,0.0019141]
[1723337124050,2.55334133,61182.0,61181.0,0.0019141]
[1723337124280,2.53034133,61182.0,61181.0,0.0009141]
[1723337124411,2.54434133,61182.0,61181.0,0.0009141]
[1723337124809,2.53034133,61182.0,61181.0,0.0009141]
[1723337125039,2.51034133,61182.0,61181.0,0.0009141]
[1723337125237,2.52434133,61182.0,61181.0,0.0009141]
[1723337125435,2.26616058,61182.0,61181.0,0.0009141]
[1723337125600,2.27516058,61182.0,61181.0,0.0019141]
[1723337125804,2.26616058,61182.0,61181.0,0.0009141]
[1723337126231,2.37305322,61182.0,61181.0,0.0019141]
[1723337126435,1.77305322,61182.0,61181.0,0.0019141]
[1723337126641,1.05460322,61182.0,61181.0,0.0019141]
[1723337126841,0.94775817,61182.0,61181.0,0.0019141]
[1723337127499,0.85887692,61182.0,61181.0,0.0019141]
[1723337127814,0.84487692,61182.0,61181.0,0.0019141]
[1723337127955,0.948245,61182.0,61181.0,0.0019141]
[1723337128355,0.934245,61182.0,61181.0,0.0019141]
[1723337128555,0.925245,61182.0,61181.0,0.0009141]
[1723337128794,0.936245,61182.0,61181.0,0.0009141]
[1723337129049,0.944245,61182.0,61181.0,0.0019141]
[1723337129246,0.944245,61182.0,61181.0,0.0009141]
[1723337129247,0.936245,61182.0,61181.0,0.0009141]
[1723337129503,0.943245,61182.0,61181.0,0.0019141]
[1723337130289,0.925245,61182.0,61181.0,0.0009141]
[1723337130531,0.935245,61182.0,61181.0,0.0009141]
[1723337130715,0.93486354,61182.0,61181.0,0.0009141]
[1723337131134,0.92486354,61182.0,61181.0,0.0009141]
[1723337131509,0.93386354,61182.0,61181.0,0.0009141]
[1723337131933,0.93786354,61182.0,61181.0,0.0009141]
[1723337133372,0.92886354,61182.0,61181.0,0.0009141]
[1723337133567,0.93586354,61182.0,61181.0,0.0009141]
[1723337134421,0.31439862,61182.0,61181.0,0.0824141]
[1723337134746,0.225412,61182.0,61181.0,0.1476141]
[1723337136591,0.454237,61182.0,61181.0,0.1476141]
[1723337136817,0.683062,61182.0,61181.0,0.1476141]
[1723337137017,0.84687692,61182.0,61181.0,0.0009141]
[1723337139416,1.94470086,61182.0,61181.0,0.0009141]
[1723337140992,1.94484424,61182.0,61181.0,0.0009141]
[1723337141359,1.85570192,61182.0,61181.0,0.0009141]
[1723337141560,1.94478516,61182.0,61181.0,0.0009141]
[1723337144405,1.94484361,61182.0,61181.0,0.0009141]
[1723337148165,1.94495094,61182.0,61181.0,0.0009141]
[1723337148880,2.02605094,61182.0,61181.0,0.0009141]
[1723337150656,2.07498308,61182.0,61181.0,0.0009141]
[1723337151338,2.02605094,61182.0,61181.0,0.0009141]
[1723337151627,1.93680192,61182.0,61181.0,0.0009141]
[1723337151772,2.02643283,61182.0,61181.0,0.0009141]
[1723337151982,2.19058253,61182.0,61181.0,0.0009141]
[1723337153526,2.10095162,61182.0,61181.0,0.0009141]
[1723337153764,2.19043013,61182.0,61181.0,0.0009141]
[1723337155320,2.19046588,61182.0,61181.0,0.0009141]
[1723337157474,2.23940338,61182.0,61181.0,0.0009141]
[1723337157674,2.30820338,61182.0,61181.0,0.0009141]
[1723337159525,2.25926588,61182.0,61181.0,0.0009141]
[1723337159700,2.33267213,61182.0,61181.0,0.0009141]
[1723337160884,2.39317213,61182.0,61181.0,0.0009141]
[1723337161330,2.30365787,61182.0,61181.0,0.0009141]
[1723337161533,2.31991979,61182.0,61181.0,0.0009141]
[1723337161734,2.4177948,61182.0,61181.0,0.0009141]
[1723337161955,2.31991979,61182.0,61181.0,0.0009141]
[1723337163319,2.57874479,61182.0,61181.0,0.0009141]
[1723337163733,2.7255573,61182.0,61181.0,0.0009141]
[1723337164362,2.57874479,61182.0,61181.0,0.0009141]
[1723337164560,2.72572578,61182.0,61181.0,0.0009141]
[1723337164774,2.70572578,61182.0,61181.0,0.0009141]
[1723337165104,2.72572578,61182.0,61181.0,0.0009141]
[1723337165264,2.71472578,61182.0,61181.0,0.0009141]
[1723337165469,2.72372578,61182.0,61181.0,0.0019141]
[1723337165709,2.83763364,61182.0,61181.0,0.0019141]
[1723337166062,2.82863364,61182.0,61181.0,0.0019141]
[1723337166265,2.45003782,61182.0,61181.0,0.0019141]
[1723337166465,2.24163782,61182.0,61181.0,0.0019141]
[1723337166669,1.93450192,61182.0,61181.0,0.0019141]
[1723337166892,1.80450192,61182.0,61181.0,0.0019141]
[1723337167193,2.01864306,61182.0,61181.0,0.0019141]
[1723337167404,1.49122049,61182.0,61181.0,0.0019141]
[1723337168186,1.36646172,61182.0,61181.0,0.0019141]
[1723337168831,1.27707935,61182.0,61181.0,0.0019141]
[1723337168992,1.26508743,61182.0,61181.0,0.0019141]
[1723337169512,1.27008743,61182.0,61181.0,0.0009141]
[1723337169711,1.26808743,61182.0,61181.0,0.0019141]
[1723337170191,1.15950192,61182.0,61181.0,0.0019141]
[1723337170611,1.36839721,61182.0,61181.0,0.0019141]
[1723337170808,1.36850984,61182.0,61181.0,0.0019141]
[1723337171555,1.28770984,61182.0,61181.0,0.0815141]
[1723337171690,1.24592433,61182.0,61181.0,0.1451141]
[1723337172043,1.21992433,61182.0,61181.0,0.1451141]
[1723337172258,1.24592433,61182.0,61181.0,0.1451141]
[1723337172657,1.23192433,61182.0,61181.0,0.1451141]
[1723337173111,1.24592433,61182.0,61181.0,0.1451141]
[1723337173938,2.07592433,61182.0,61181.0,0.0009141]
[1723337174494,2.04698302,61182.0,61181.0,0.0009141]
[1723337175451,2.03298302,61182.0,61181.0,0.0009141]
[1723337175641,2.02098302,61182.0,61181.0,0.0009141]
[1723337175939,2.02098302,61182.0,61181.0,0.0019141]
[1723337175940,2.11252853,61182.0,61181.0,0.0019141]
[1723337176338,2.11252853,61182.0,61181.0,0.0009141]
[1723337176339,2.08452853,61182.0,61181.0,0.0009141]
[1723337176632,2.04372853,61182.0,61181.0,0.0019141]
[1723337176794,2.03498302,61182.0,61181.0,0.0009141]
[1723337176993,2.02098302,61182.0,61181.0,0.0009141]
[1723337177310,2.03498302,61182.0,61181.0,0.0009141]
[1723337177716,2.26380802,61182.0,61181.0,0.0009141]
[1723337177980,2.35342953,61182.0,61181.0,0.0009141]
[1723337178152,2.38143811,61182.0,61181.0,0.0009141]
[1723337178396,2.55958781,61182.0,61181.0,0.0019141]
[1723337178625,2.53158767,61182.0,61181.0,0.0009141]
[1723337178932,2.53158767,61182.0,61181.0,0.0019141]
[1723337178933,2.55958767,61182.0,61181.0,0.0019141]
[1723337179131,2.54558767,61182.0,61181.0,0.0009141]
[1723337179390,2.53158767,61182.0,61181.0,0.0009141]
[1723337179588,2.54558767,61182.0,61181.0,0.0019141]
[1723337179795,2.55947656,61182.0,61181.0,0.0019141]
[1723337180054,2.55547656,61182.0,61181.0,0.0009141]
[1723337180206,2.55547656,61182.0,61181.0,0.0019141]
[1723337180207,2.71577656,61182.0,61181.0,0.0019141]
[1723337180413,2.56867395,61182.0,61181.0,0.0019141]
[1723337180612,2.58267395,61182.0,61181.0,0.0019141]
[1723337180816,2.56267395,61182.0,61181.0,0.0019141]
[1723337180987,2.55267395,61182.0,61181.0,0.0019141]
[1723337181550,2.55314449,61182.0,61181.0,0.0019141]
[1723337183168,2.41899479,61182.0,61181.0,0.0019141]
[1723337183340,2.39899479,61182.0,61181.0,0.0019141]
[1723337183549,2.41899479,61182.0,61181.0,0.0019141]
[1723337183698,2.39899479,61182.0,61181.0,0.0019141]
[1723337184047,2.41899479,61182.0,61181.0,0.0019141]
[1723337184622,2.58314449,61182.0,61181.0,0.0019141]
[1723337185025,2.58274976,61182.0,61181.0,0.0019141]
[1723337185890,2.81157476,61182.0,61181.0,0.0019141]
[1723337186073,2.81157476,61182.0,61171.0,0.0001]
[1723337186074,0.830901,61181.0,61171.0,0.0001]
[1723337186224,2.13188837,61181.0,61171.0,0.0001]
[1723337188224,2.15988837,61181.0,61180.0,0.0019141]
[1723337189106,2.14598151,61181.0,61180.0,0.0019141]
[1723337189518,2.14598151,61181.0,61180.0,0.0009141]
[1723337189921,2.15998151,61181.0,61180.0,0.0019141]
[1723337190116,2.15998151,61181.0,61180.0,0.001]
[1723337190485,2.36074423,61181.0,61180.0,0.001]
[1723337190662,2.42092954,61181.0,61180.0,0.001]
[1723337191796,0.801017,61172.0,61171.0,0.0001]
[1723337191990,1.8962277,61172.0,61171.0,0.0001]
[1723337192509,1.77363192,61172.0,61171.0,0.0001]
[1723337192702,1.89622336,61172.0,61171.0,0.0001]
[1723337193085,1.91622336,61172.0,61171.0,0.0011]
[1723337193539,2.14508536,61172.0,61171.0,0.0011]
[1723337193747,2.05249392,61172.0,61171.0,0.0011]
[1723337193968,2.06057364,61172.0,61171.0,0.0011]
[1723337194121,2.20768858,61172.0,61171.0,0.0011]
[1723337194339,2.06057364,61172.0,61171.0,0.0011]
[1723337194821,2.03857364,61172.0,61171.0,0.0011]
[1723337195047,0.87204964,61172.0,61171.0,0.1413]
[1723337195225,1.03890246,61172.0,61171.0,0.1413]
[1723337195390,1.03890246,61172.0,61171.0,0.1403]
[1723337195391,0.91876992,61172.0,61171.0,0.1403]
[1723337195605,1.22117015,61172.0,61171.0,0.1403]
[1723337195806,0.98930815,61172.0,61171.0,0.1403]
[1723337196010,0.97830815,61172.0,61171.0,0.1403]
[1723337196256,0.99230815,61172.0,61171.0,0.1403]
[1723337196494,1.00330815,61172.0,61171.0,0.1403]
[1723337196670,0.98930815,61172.0,61171.0,0.1403]
[1723337196870,0.98797297,61172.0,61171.0,0.1403]
[1723337198129,0.99997297,61172.0,61171.0,0.1403]
[1723337198331,1.00697297,61172.0,61171.0,0.1403]
[1723337200471,0.93343515,61172.0,61171.0,0.1403]
[1723337202055,0.93343515,61172.0,61171.0,0.1412152]
[1723337207103,1.12974354,61172.0,61171.0,0.0010152]
[1723337207309,1.40763644,61172.0,61171.0,0.0010152]
[1723337207510,1.2850592,61172.0,61171.0,0.0010152]
[1723337207802,1.40764884,61172.0,61171.0,0.0010152]
[1723337208003,1.40764745,61172.0,61171.0,0.0010152]
[1723337210827,1.2850592,61172.0,61171.0,0.0010152]
[1723337211470,1.16229715,61172.0,61171.0,0.0010152]
[1723337212250,1.26036002,61172.0,61171.0,0.0010152]
[1723337212571,1.16229715,61172.0,61171.0,0.0010152]
[1723337212730,1.26035926,61172.0,61171.0,0.0010152]
[1723337213453,1.29888611,61172.0,61171.0,0.0010152]
[1723337213653,1.200824,61172.0,61171.0,0.0010152]
[1723337214516,1.2988884,61172.0,61171.0,0.0010152]
[1723337214894,1.32340572,61172.0,61171.0,0.0010152]
[1723337215287,1.200824,61172.0,61171.0,0.0010152]
[1723337215471,1.32340572,61172.0,61171.0,0.0010152]
[1723337215891,1.31140572,61172.0,61171.0,0.0010152]
[1723337216295,1.25660572,61172.0,61171.0,0.0010152]
[1723337216459,1.31838448,61172.0,61171.0,0.0010152]
[1723337217162,1.27989689,61172.0,61171.0,0.0010152]
[1723337217316,1.31832768,61172.0,61171.0,0.0010152]
[1723337217676,1.30432768,61172.0,61171.0,0.0010152]
[1723337217866,2.12432768,61172.0,61171.0,0.0010152]
[1723337218068,2.00172794,61172.0,61171.0,0.0010152]
[1723337218242,2.07792794,61172.0,61171.0,0.0010152]
[1723337218448,2.09192794,61172.0,61171.0,0.0010152]
[1723337219899,2.01572794,61172.0,61171.0,0.0010152]
[1723337220017,2.01572794,61172.0,61171.0,0.1399152]
[1723337220018,1.74843515,61172.0,61171.0,0.1399152]
[1723337221573,1.87106738,61172.0,61171.0,0.1399152]
[1723337223643,1.87109818,61172.0,61171.0,0.1399152]
[1723337227144,1.8465767,61172.0,61171.0,0.1399152]
[1723337229437,1.74843515,61172.0,61171.0,0.1399152]
[1723337230257,1.8465767,61172.0,61171.0,0.1399152]
[1723337230603,1.87109818,61172.0,61171.0,0.1399152]
[1723337230814,1.74843515,61172.0,61171.0,0.1399152]
[1723337231396,1.97729715,61172.0,61171.0,0.0010152]
[1723337231602,2.32085405,61172.0,61171.0,0.0010152]
[1723337232031,2.33085405,61172.0,61171.0,0.0010152]
[1723337232440,2.47807798,61172.0,61171.0,0.0010152]
[1723337232583,2.33085405,61172.0,61171.0,0.0010152]
[1723337232995,2.16670435,61172.0,61171.0,0.0010152]
[1723337233198,2.31392008,61172.0,61171.0,0.0010152]
[1723337233453,2.37156635,61172.0,61171.0,0.0010152]
[1723337233655,2.15370435,61172.0,61171.0,0.0010152]
[1723337234040,2.31531818,61172.0,61171.0,0.0010152]
[1723337234241,2.16810267,61172.0,61171.0,0.0010152]
[1723337234444,2.31530998,61172.0,61171.0,0.0010152]
[1723337234645,2.54417198,61172.0,61171.0,0.0010152]
[1723337234847,2.31530998,61172.0,61171.0,0.0010152]
[1723337236608,2.16810267,61172.0,61171.0,0.0010152]
[1723337237457,2.12889715,61172.0,61171.0,0.0010152]
[1723337237590,2.16763564,61172.0,61171.0,0.0010152]
[1723337238210,1.94823564,61172.0,61171.0,0.0010152]
[1723337238420,1.20703564,61172.0,61171.0,0.0841152]
[1723337238800,1.16829715,61172.0,61171.0,0.0841152]
[1723337241091,1.29094718,61172.0,61171.0,0.0841152]
[1723337243921,1.16829715,61172.0,61171.0,0.0841152]
[1723337247202,1.16829715,61172.0,61171.0,0.0010152]
[1723337247773,1.26641737,61172.0,61171.0,0.0010152]
[1723337249581,1.16829715,61172.0,61171.0,0.0010152]
[1723337249785,1.29094718,61172.0,61171.0,0.0010152]
[1723337249982,1.24899715,61172.0,61171.0,0.0010152]
[1723337250185,1.21912174,61172.0,61171.0,0.0010152]
[1723337250365,1.28792174,61172.0,61171.0,0.0010152]
[1723337250930,1.20722174,61172.0,61171.0,0.0010152]
[1723337251718,1.20722174,61172.0,61171.0,0.0841152]
[1723337251892,1.2909566,61172.0,61171.0,0.0841152]
[1723337253503,1.16829715,61172.0,61171.0,0.0841152]
[1723337253671,1.29095934,61172.0,61171.0,0.0841152]